bitfinex/quotes_SOLUSD_20250811
["timestamp","ask_amount","ask_price","bid_price","bid_amount"]
[1754893882303,43.89387073,185.17,185.16,1e-08]
[1754893883842,39.11650383,185.17,185.16,1e-08]
[1754893884136,43.23387073,185.17,185.16,1e-08]
[1754893885234,43.23387073,185.17,185.16,0.21000001]
[1754893885235,35.40044283,185.17,185.16,0.21000001]
[1754893885704,30.0,185.17,185.16,0.21000001]
[1754893886041,35.40044283,185.17,185.16,0.21000001]
[1754893886247,35.40044283,185.17,185.16,1e-08]
[1754893887020,5.40044283,185.17,185.16,1e-08]
[1754893887819,10.83780973,185.17,185.16,1e-08]
[1754893888115,5.40044283,185.17,185.16,1e-08]
[1754893891733,4.777367,185.18,185.16,4.98736691]
[1754893891932,4.7773669,185.2,185.16,1e-08]
[1754893892138,0.68,185.19,185.16,1e-08]
[1754893893215,0.68,185.18,185.16,1e-08]
[1754893893539,5.4573669,185.18,185.16,1e-08]
[1754893893728,5.40044283,185.17,185.16,1e-08]
[1754893893934,6.08044283,185.17,185.16,1e-08]
[1754893894318,5.40044283,185.17,185.16,1e-08]
[1754893895341,6.08044283,185.17,185.16,1e-08]
[1754893897845,36.08044283,185.17,185.16,1e-08]
[1754893899534,40.85780973,185.17,185.16,1e-08]
[1754893899731,57.07621773,185.17,185.16,1e-08]
[1754893900113,52.29885083,185.17,185.16,1e-08]
[1754893902735,57.07621773,185.17,185.16,1e-08]
[1754893902936,94.59621773,185.17,185.16,1e-08]
[1754893904219,92.87615157,185.17,185.16,1e-08]
[1754893905136,73.60044283,185.17,185.16,1e-08]
[1754893905452,36.08044283,185.17,185.16,1e-08]
[1754893905739,35.40044283,185.17,185.16,1e-08]
[1754893905937,38.66774383,185.17,185.16,1e-08]
[1754893906345,39.34774383,185.17,185.16,1e-08]
[1754893908542,44.12388719,185.17,185.16,1e-08]
[1754893909146,39.34774383,185.17,185.16,1e-08]
[1754893911338,14.12388719,185.17,185.16,1e-08]
[1754893913263,8.66774383,185.17,185.16,1e-08]
[1754893914040,9.34774383,185.17,185.16,1e-08]
[1754893915648,14.12388719,185.17,185.16,1e-08]
[1754893916435,44.12388719,185.17,185.16,1e-08]
[1754893917773,81.64388719,185.17,185.16,1e-08]
[1754893918073,44.12388719,185.17,185.16,1e-08]
[1754893919860,38.66774383,185.17,185.16,1e-08]
[1754893920576,30.0,185.17,185.16,0.21000001]
[1754893920976,5.39991667,185.19,185.16,4.98614337]
[1754893921178,5.39991667,185.19,185.17,4.77614336]
[1754893921482,38.28,185.21,185.18,4.98614336]
[1754893921483,15.376216,185.21,185.18,4.98614336]
[1754893921772,30.0,185.19,185.18,15.10621557]
[1754893921961,0.06,185.21,185.18,15.10621557]
[1754893922464,0.06,185.21,185.19,0.21]
[1754893923062,0.06,185.21,185.2,4.77614336]
[1754893923279,0.76,185.21,185.2,4.77614336]
[1754893923462,0.06,185.21,185.2,4.77614336]
[1754893926886,0.76,185.21,185.18,15.10621557]
[1754893927059,0.06,185.21,185.2,4.77614336]
[1754893930060,0.06,185.21,185.2,4.98614336]
[1754893931061,0.06,185.21,185.2,4.77614336]
[1754893931780,0.06,185.21,185.2,94.37614336]
[1754893932269,0.76,185.21,185.2,94.37614336]
[1754893932881,0.06,185.21,185.2,94.37614336]
[1754893933682,0.06,185.21,185.2,132.08614336]
[1754893933990,0.06,185.21,185.2,151.96850229]
[1754893934306,0.06,185.21,185.2,157.36807032]
[1754893936979,0.06,185.23,185.22,41.10621557]
[1754893937282,0.06,185.25,185.24,5.39840207]
[1754893937597,0.06,185.25,185.24,42.81598356]
[1754893937890,0.06,185.25,185.24,43.02598356]
[1754893939398,0.06,185.25,185.24,138.02438563]
[1754893939568,0.06,185.25,185.24,137.48454543]
[1754893940283,0.06,185.25,185.24,131.87614336]
[1754893942276,0.06,185.25,185.24,137.27454543]
[1754893942480,0.06,185.25,185.24,152.590761]
[1754893944378,0.06,185.25,185.24,152.380761]
[1754893944586,0.06,185.25,185.24,146.98235893]
[1754893944780,0.06,185.25,185.24,152.380761]
[1754893945193,0.06,185.25,185.24,152.590761]
[1754893947688,0.06,185.25,185.24,152.380761]
[1754893953116,0.06,185.25,185.24,114.880761]
[1754893953300,0.06,185.25,185.24,152.380761]
[1754893954886,0.73,185.25,185.24,152.380761]
[1754893955204,0.06,185.25,185.24,152.380761]
[1754893958491,0.06,185.25,185.24,152.590761]
[1754893959690,0.06,185.25,185.24,152.380761]
[1754893960221,0.06,185.25,185.24,150.65572993]
[1754893969099,0.06,185.25,185.24,150.86572993]
[1754893969306,0.06,185.25,185.24,147.60461764]
[1754893969515,0.06,185.25,185.24,150.65572993]
[1754893969516,0.73,185.25,185.24,150.65572993]
[1754893970115,0.06,185.25,185.24,150.65572993]
[1754893970827,0.73,185.25,185.24,150.65572993]
[1754893971218,0.73,185.25,185.24,147.60461764]
[1754893971406,0.73,185.25,185.24,150.65572993]
[1754893971607,0.06,185.25,185.24,150.86572993]
[1754893971809,0.06,185.27,185.26,41.10621557]
[1754893972111,0.06,185.27,185.26,171.81710978]
[1754893972315,0.73,185.27,185.26,171.27732786]
[1754893973633,0.73,185.27,185.26,176.67514714]
[1754893975407,0.06,185.27,185.26,176.67514714]
[1754893977227,0.73,185.27,185.26,176.67514714]
[1754893982031,0.73,185.27,185.26,15.10621557]
[1754893982218,0.73,185.27,185.26,52.64621557]
[1754893982417,6.12752793,185.27,185.26,52.64621557]
[1754893983537,0.73,185.27,185.26,52.64621557]
[1754893984521,6.12752793,185.27,185.26,52.64621557]
[1754893985117,0.73,185.27,185.26,52.64621557]
[1754893985823,6.12752793,185.27,185.26,37.54]
[1754893986019,10.89765423,185.27,185.21,0.03]
[1754893986339,4.7701263,185.25,185.22,37.52]
[1754893986530,0.72,185.24,185.22,37.52]
[1754893988132,6.11865763,185.24,185.22,37.52]
[1754893988338,0.72,185.23,185.22,52.62621557]
[1754893988621,0.72,185.23,185.22,142.22621557]
[1754893989827,6.11869351,185.23,185.22,142.22621557]
[1754893991543,0.72,185.23,185.22,142.22621557]
[1754893992929,6.11869351,185.23,185.22,142.22621557]
[1754893994953,0.72,185.23,185.22,142.22621557]
[1754893996025,0.06,185.27,185.23,15.10621557]
[1754893996233,0.06,185.27,185.26,19.87634187]
[1754893996455,30.06,185.27,185.26,57.37634187]
[1754893996830,6.17752793,185.27,185.26,37.5]
[1754893999759,6.17752793,185.27,185.23,104.70621557]
[1754893999760,10.94765423,185.27,185.23,104.70621557]
[1754894000056,0.72,185.26,185.24,52.60621557]
[1754894000431,0.72,185.26,185.24,57.37634187]
[1754894001265,0.72,185.26,185.24,52.60621557]
[1754894001443,0.72,185.26,185.24,57.37634187]
[1754894002356,5.45756943,185.27,185.24,52.60621557]
[1754894002541,0.72,185.26,185.24,52.60621557]
[1754894002740,5.4901263,185.26,185.24,37.5]
[1754894003055,0.72,185.25,185.23,37.54]
[1754894003252,4.7701263,185.24,185.22,37.54]
[1754894003552,0.72,185.23,185.22,37.54]
[1754894004151,0.72,185.23,185.21,37.55]
[1754894004549,0.72,185.22,185.21,37.55]
[1754894006356,6.11869196,185.24,185.21,37.55]
[1754894006557,0.72,185.23,185.21,42.3201263]
[1754894006741,5.39869196,185.24,185.21,42.3201263]
[1754894006742,4.7701263,185.26,185.21,42.3201263]
[1754894006948,0.06,185.27,185.23,4.7701263]
[1754894006949,0.72,185.25,185.23,4.7701263]
[1754894007160,0.72,185.25,185.23,42.2901263]
[1754894008354,0.72,185.25,185.23,37.52]
[1754894009170,6.1775797,185.27,185.24,4.7701263]
[1754894009468,0.72,185.26,185.24,4.7701263]
[1754894010055,0.06,185.25,185.24,15.10621557]
[1754894010268,0.06,185.25,185.24,57.39634187]
[1754894010976,0.06,185.25,185.24,147.20634187]
[1754894011351,0.06,185.25,185.24,152.60474394]
[1754894012054,0.06,185.25,185.24,146.99634187]
[1754894018354,0.06,185.25,185.24,142.22621557]
[1754894018555,0.78,185.25,185.24,146.99634187]
[1754894019053,0.06,185.25,185.24,146.99634187]
[1754894019469,0.78,185.25,185.24,146.99634187]
[1754894021392,0.06,185.25,185.24,146.99634187]
[1754894022185,0.78,185.25,185.24,146.99634187]
[1754894023179,0.78,185.25,185.24,127.12]
[1754894024060,0.78,185.25,185.24,131.8901263]
[1754894026079,0.06,185.25,185.24,131.8901263]
[1754894026784,6.17811066,185.25,185.24,127.12]
[1754894026968,0.78,185.25,185.24,127.12]
[1754894028984,0.06,185.25,185.24,137.28852837]
[1754894029190,0.78,185.25,185.24,137.28852837]
[1754894029390,0.78,185.25,185.24,131.8901263]
[1754894029712,0.78,185.25,185.24,127.12]
[1754894030512,0.78,185.25,185.24,131.8901263]
[1754894030678,0.78,185.25,185.24,127.12]
[1754894031499,6.17811066,185.25,185.24,127.12]
[1754894032294,0.78,185.25,185.24,127.12]
[1754894032484,6.17811066,185.25,185.24,127.12]
[1754894033184,6.17811066,185.25,185.24,127.15]
[1754894038127,5.45811066,185.25,185.24,131.9201263]
[1754894038441,5.45811066,185.25,185.24,127.15]
[1754894038944,5.45811066,185.25,185.24,127.13]
[1754894040643,5.45811066,185.25,185.24,89.63]
[1754894040840,5.45811066,185.25,185.24,127.15]
[1754894043337,0.06,185.25,185.24,147.23634187]
[1754894043526,0.06,185.25,185.24,147.02634187]
[1754894044444,0.06,185.25,185.24,147.23634187]
[1754894046620,0.06,185.25,185.24,152.63474394]
[1754894047620,0.06,185.25,185.24,147.23634187]
[1754894048349,0.06,185.25,185.24,147.02634187]
[1754894049450,0.78,185.25,185.24,147.02634187]
[1754894049750,0.06,185.25,185.24,147.02634187]
[1754894056264,0.06,185.25,185.24,142.25621557]
[1754894056467,0.78,185.25,185.24,145.30875719]
[1754894056774,0.78,185.25,185.24,142.25621557]
[1754894056981,0.78,185.25,185.24,145.30875719]
[1754894057582,0.78,185.25,185.24,142.25621557]
[1754894057751,0.78,185.25,185.24,145.30875719]
[1754894059077,0.78,185.25,185.24,145.32875719]
[1754894060165,0.78,185.25,185.24,89.63]
[1754894060355,0.78,185.25,185.24,127.15]
[1754894060781,6.17811066,185.25,185.24,127.15]
[1754894061681,0.78,185.25,185.24,127.15]
[1754894063383,6.17811066,185.25,185.24,127.15]
[1754894063958,0.78,185.25,185.24,127.15]
[1754894065080,6.17811066,185.25,185.24,127.15]
[1754894065466,0.78,185.25,185.24,127.15]
[1754894065782,6.17811066,185.25,185.24,127.15]
[1754894067092,9.23065228,185.25,185.24,37.55]
[1754894067265,9.23065228,185.25,185.24,0.03]
[1754894068258,10.95044915,185.25,185.24,0.03]
[1754894069895,6.17811066,185.25,185.24,0.03]
[1754894071591,10.95044915,185.25,185.24,0.03]
[1754894072792,0.06,185.25,185.24,0.03]
[1754894073583,0.75,185.25,185.24,0.03]
[1754894074085,0.06,185.25,185.24,0.03]
[1754894076289,0.06,185.25,185.24,37.53]
[1754894077487,0.06,185.25,185.24,42.51233849]
[1754894079686,0.06,185.25,185.24,42.30233849]
[1754894081004,0.75,185.25,185.24,42.30233849]
[1754894081507,0.06,185.25,185.24,42.30233849]
[1754894082704,0.75,185.25,185.24,131.90233849]
[1754894085618,0.75,185.25,185.24,127.13]
[1754894085792,6.14811066,185.25,185.24,127.15]
[1754894086201,6.14811066,185.25,185.24,89.63]
[1754894090919,6.14811066,185.25,185.24,0.03]
[1754894098214,5.45811066,185.25,185.24,0.03]
[1754894098614,6.14811066,185.25,185.24,0.03]
[1754894098807,36.14811066,185.25,185.24,0.03]
[1754894099515,6.14811066,185.25,185.24,0.03]
[1754894102931,9.20191023,185.25,185.24,0.03]
[1754894103230,25.41418323,185.25,185.24,0.03]
[1754894103831,25.41418323,185.25,185.24,1e-08]
[1754894104014,55.41418323,185.25,185.24,1e-08]
[1754894104328,57.13526293,185.25,185.24,1e-08]
[1754894104917,61.68571284,185.25,185.24,1e-08]
[1754894105307,26.0,185.23,185.22,1e-08]
[1754894105508,60.77487927,185.23,185.22,1e-08]
[1754894105801,61.49487927,185.23,185.22,1e-08]
[1754894106011,69.05567678,185.23,185.22,1e-08]
[1754894107119,39.05567678,185.23,185.22,1e-08]
[1754894108127,76.55567678,185.23,185.22,1e-08]
[1754894110133,106.55567678,185.23,185.22,1e-08]
[1754894114039,80.55567678,185.23,185.22,1e-08]
[1754894121340,75.84079751,185.23,185.22,1e-08]
[1754894121538,80.61567678,185.23,185.22,1e-08]
[1754894126148,78.89679538,185.23,185.22,1e-08]
[1754894129648,78.89679538,185.23,185.21,1e-08]
[1754894129845,59.05599787,185.22,185.21,1e-08]
[1754894130054,59.73599787,185.22,185.21,1e-08]
[1754894131040,61.89810087,185.22,185.21,1e-08]
[1754894131750,67.29708586,185.22,185.21,1e-08]
[1754894133049,67.29708586,185.22,185.2,0.03]
[1754894133238,41.31599787,185.21,185.2,1e-08]
[1754894133438,71.31599787,185.21,185.2,1e-08]
[1754894133638,73.47833587,185.21,185.2,1e-08]
[1754894135139,78.87761236,185.21,185.2,1e-08]
[1754894141665,78.87761236,185.21,185.18,0.03]
[1754894141666,26.0,185.19,185.18,0.03]
[1754894141877,66.61599787,185.19,185.17,1e-08]
[1754894142094,3.73599787,185.18,185.17,1e-08]
[1754894142394,5.89856887,185.18,185.17,1e-08]
[1754894143154,11.29872007,185.18,185.17,1e-08]
[1754894144790,41.29872007,185.18,185.17,1e-08]
[1754894145653,40.61872007,185.18,185.17,1e-08]
[1754894146484,78.17872007,185.18,185.17,1e-08]
[1754894148778,78.85872007,185.18,185.17,1e-08]
[1754894149286,75.8027222,185.18,185.17,1e-08]
[1754894149503,37.5627222,185.18,185.17,0.21000001]
[1754894149717,5.4001512,185.18,185.17,0.21000001]
[1754894150017,5.4001512,185.18,185.17,1e-08]
[1754894150599,8.4861492,185.18,185.17,0.21000001]
[1754894150986,8.4861492,185.18,185.17,1e-08]
[1754894152411,38.4861492,185.18,185.17,1e-08]
[1754894155103,35.4001512,185.18,185.17,1e-08]
[1754894155606,38.6961492,185.18,185.17,1e-08]
[1754894155803,35.4001512,185.18,185.17,1e-08]
[1754894157195,5.4001512,185.18,185.17,1e-08]
[1754894158193,8.4861492,185.18,185.17,1e-08]
[1754894158910,35.4001512,185.18,185.17,1e-08]
[1754894159283,38.4861492,185.18,185.17,1e-08]
[1754894160513,39.2061492,185.18,185.17,1e-08]
[1754894161601,42.26214707,185.18,185.17,1e-08]
[1754894161818,79.90214707,185.18,185.17,1e-08]
[1754894164188,81.62467192,185.18,185.17,1e-08]
[1754894164489,26.0,185.15,185.13,0.03]
[1754894164683,72.39852272,185.14,185.13,0.03]
[1754894164910,73.11852272,185.14,185.13,0.03]
[1754894165486,78.10704472,185.14,185.13,0.03]
[1754894166594,83.50836264,185.14,185.13,0.03]
[1754894171122,83.50836264,185.14,185.09,0.03]
[1754894171290,4.77852272,185.12,185.09,0.03]
[1754894171490,72.39852272,185.12,185.09,0.03]
[1754894171703,73.11852272,185.12,185.09,0.03]
[1754894172228,75.28167872,185.12,185.09,0.03]
[1754894173128,80.68358018,185.12,185.09,0.03]
[1754894174327,75.90505746,185.12,185.09,0.03]
[1754894174621,80.68358018,185.12,185.09,0.03]
[1754894177108,75.90505746,185.12,185.09,0.03]
[1754894177316,80.68358018,185.12,185.09,0.03]
[1754894177703,79.96358018,185.12,185.09,0.24]
[1754894178028,37.56505746,185.12,185.1,0.21]
[1754894178414,37.56505746,185.12,185.11,5.01852272]
[1754894178610,37.56505746,185.12,185.11,0.03]
[1754894179197,37.56505746,185.12,185.11,0.24]
[1754894180028,37.56505746,185.12,185.11,0.03]
[1754894180029,43.06358018,185.12,185.11,0.03]
[1754894180407,80.68358018,185.12,185.09,0.03]
[1754894180610,4.77852272,185.1,185.09,0.03]
[1754894180913,72.41852272,185.1,185.09,0.03]
[1754894181121,78.54100786,185.1,185.09,0.03]
[1754894182031,48.54100786,185.1,185.09,0.03]
[1754894183406,53.31952986,185.1,185.09,0.03]
[1754894183609,48.54100714,185.1,185.09,0.03]
[1754894183816,53.31952986,185.1,185.09,0.03]
[1754894184930,83.31952986,185.1,185.09,0.03]
[1754894185840,78.54100714,185.1,185.09,0.03]
[1754894186035,83.31952986,185.1,185.09,0.03]
[1754894186211,77.82100714,185.1,185.09,0.03]
[1754894186920,40.18100714,185.1,185.09,0.03]
[1754894187127,77.80100714,185.1,185.09,0.03]
[1754894187651,83.29952986,185.1,185.09,0.03]
[1754894187820,78.52100714,185.1,185.09,0.03]
[1754894188026,77.80100714,185.1,185.09,0.03]
[1754894188720,77.80100714,185.1,185.09,5.01852272]
[1754894188721,34.778522,185.1,185.09,5.01852272]
[1754894189121,30.0,185.1,185.09,5.01852272]
[1754894189954,10.80602021,185.12,185.09,5.01852272]
[1754894190152,10.80602021,185.12,185.11,4.77852272]
[1754894190459,40.80602021,185.12,185.11,4.77852272]
[1754894191147,40.80602021,185.12,185.1,0.21]
[1754894191350,40.80602021,185.12,185.11,4.77852272]
[1754894191556,26.0,185.09,185.0,4.359186]
[1754894191846,10.0,184.96,184.86,35.0]
[1754894192060,10.78761898,184.87,184.81,4.778523]
[1754894192264,0.68,184.88,184.81,0.21]
[1754894192554,6.00781178,184.87,184.81,0.21]
[1754894192730,4.77852272,184.82,184.81,0.21]
[1754894192928,36.00781178,184.82,184.81,0.21]
[1754894193129,40.78601225,184.82,184.81,0.21]
[1754894193350,10.78601225,184.82,184.78,0.21]
[1754894193543,44.46508596,184.88,184.79,0.21]
[1754894193861,4.77852272,184.86,184.79,0.21]
[1754894194159,17.78508596,184.88,184.79,0.21]
[1754894194160,4.77852272,184.83,184.79,0.21]
[1754894194341,23.19404152,184.88,184.79,0.21]
[1754894194540,4.77852272,184.83,184.79,15.31621557]
[1754894194748,4.77852272,184.83,184.8,0.21]
[1754894195054,4.77852272,184.83,184.74,10.54130128]
[1754894195055,0.68,184.87,184.81,0.21]
[1754894195263,0.68,184.87,184.72,10.0]
[1754894195264,4.77852272,184.82,184.76,0.21]
[1754894195437,4.77852272,184.77,184.76,0.21]
[1754894195941,4.77852272,184.77,184.76,15.31621557]
[1754894196136,13.530896,184.88,184.8,15.10621557]
[1754894196347,4.77852272,184.83,184.82,26.0]
[1754894196558,19.61985354,184.88,184.83,15.10621557]
[1754894196559,13.530896,184.88,184.83,15.10621557]
[1754894196860,4.77852272,184.84,184.83,15.10621557]
[1754894197044,4.77852272,184.84,184.81,26.21]
[1754894197247,4.77852272,184.83,184.82,0.21]
[1754894198060,4.77852272,184.83,184.8,15.31621557]
[1754894198266,4.77852272,184.81,184.76,0.21]
[1754894198450,4.77852272,184.77,184.76,0.21]
[1754894199858,5.412134,184.77,184.76,0.21]
[1754894200268,10.19038889,184.78,184.76,0.21]
[1754894200460,5.4114623,184.8,184.76,0.21]
[1754894200763,4.77852272,184.78,184.76,0.21]
[1754894200944,5.4114623,184.8,184.75,15.10621557]
[1754894200945,4.77852272,184.77,184.75,15.10621557]
[1754894201450,4.77852272,184.78,184.75,15.31621557]
[1754894201947,10.1904946,184.78,184.75,15.31621557]
[1754894203179,4.77852272,184.76,184.67,3.03144598]
[1754894203463,4.77852272,184.72,184.7,15.10621557]
[1754894203639,4.77852272,184.73,184.71,0.21]
[1754894204043,4.77852272,184.72,184.71,0.21]
[1754894204265,10.19194089,184.73,184.71,0.21]
[1754894204469,10.19188145,184.73,184.71,0.21]
[1754894204673,4.77852272,184.73,184.71,0.21]
[1754894205358,4.77852272,184.73,184.7,15.10621557]
[1754894205564,4.77852272,184.73,184.7,15.31621557]
[1754894205963,4.77852272,184.74,184.7,15.31621557]
[1754894206167,5.45852272,184.73,184.69,0.03]
[1754894206356,10.19094965,184.76,184.73,15.10621557]
[1754894206560,34.77852272,184.74,184.72,26.0]
[1754894206967,30.0,184.74,184.72,26.0]
[1754894209087,30.0,184.74,184.73,15.10621557]
[1754894209286,30.0,184.74,184.73,20.09473829]
[1754894209662,0.68,184.8,184.73,15.31621557]
[1754894209859,21.70767572,184.8,184.75,15.10621557]
[1754894210063,30.0,184.76,184.75,20.09473829]
[1754894211559,30.0,184.76,184.75,15.10621557]
[1754894212972,34.77852272,184.76,184.69,16.277393]
[1754894213172,4.77852272,184.72,184.7,15.13621557]
[1754894213377,4.77852272,184.72,184.71,79.56621557]
[1754894213884,4.77852272,184.73,184.72,15.10621557]
[1754894214660,34.77852272,184.73,184.72,15.10621557]
[1754894215074,30.0,184.73,184.72,15.10621557]
[1754894215772,36.09337033,184.73,184.71,64.46]
[1754894216582,40.87189305,184.73,184.71,64.46]
[1754894217396,5.45852272,184.72,184.71,53.56621557]
[1754894217609,35.45852272,184.72,184.71,38.46]
[1754894217908,35.45852272,184.72,184.7,0.03]
[1754894218206,30.0,184.72,184.71,38.44]
[1754894218586,30.68,184.72,184.7,0.03]
[1754894218791,0.68,184.71,184.7,0.03]
[1754894218999,30.68,184.71,184.7,0.03]
[1754894219602,40.87241476,184.71,184.7,0.03]
[1754894220512,30.0,184.71,184.7,0.03]
[1754894220807,30.0,184.71,184.7,109.72473829]
[1754894221311,0.71,184.75,184.7,109.72473829]
[1754894221499,0.71,184.75,184.71,43.25852272]
[1754894221703,0.71,184.75,184.71,38.48]
[1754894222001,6.12279621,184.75,184.71,43.25852272]
[1754894222193,6.12279621,184.75,184.71,38.48]
[1754894222588,6.12279621,184.75,184.71,43.25852272]
[1754894222789,30.0,184.72,184.71,58.36473829]
[1754894223083,30.0,184.72,184.71,53.58621557]
[1754894223893,36.12359896,184.72,184.7,89.63]
[1754894224086,35.41359896,184.72,184.71,38.46]
[1754894224682,36.12359896,184.72,184.71,38.46]
[1754894225184,40.90212168,184.72,184.71,38.46]
[1754894226405,40.90212168,184.72,184.7,0.03]
[1754894226610,5.48852272,184.71,184.7,0.03]
[1754894226791,30.71,184.71,184.7,0.03]
[1754894227899,35.48852272,184.71,184.7,0.03]
[1754894228496,34.77852272,184.71,184.7,0.03]
[1754894228697,30.0,184.71,184.7,0.03]
[1754894229193,30.0,184.71,184.7,15.13621557]
[1754894229597,30.0,184.71,184.7,19.91473829]
[1754894230190,30.0,184.71,184.7,15.13621557]
[1754894233386,33.96841037,184.71,184.7,15.13621557]
[1754894233589,30.0,184.71,184.7,15.13621557]
[1754894233798,30.0,184.71,184.7,26.03]
[1754894233998,40.90241476,184.71,184.7,38.43]
[1754894234316,42.89241841,184.71,184.7,38.43]
[1754894234494,40.90241476,184.71,184.7,38.43]
[1754894236204,46.80100697,184.71,184.7,38.43]
[1754894236504,40.90241476,184.71,184.7,38.43]
[1754894236704,42.02248425,184.71,184.7,38.43]
[1754894236912,46.80100697,184.71,184.7,38.43]
[1754894237414,40.90241476,184.71,184.7,38.43]
[1754894237615,45.41943625,184.71,184.7,38.43]
[1754894240395,45.41943625,184.71,184.7,31.65716691]
[1754894240596,40.90241476,184.71,184.7,31.65716691]
[1754894241710,36.12389204,184.71,184.7,31.65716691]
[1754894241913,40.90241476,184.71,184.7,31.65716691]
[1754894242119,36.12389204,184.71,184.7,31.65716691]
[1754894242327,40.90241476,184.71,184.7,31.65716691]
[1754894242530,44.92371454,184.71,184.7,31.65716691]
[1754894243938,44.21371454,184.71,184.7,31.65716691]
[1754894244711,34.02129978,184.71,184.7,31.65716691]
[1754894245122,44.92371454,184.71,184.7,31.65716691]
[1754894245325,40.14519182,184.71,184.7,31.65716691]
[1754894245636,44.92371454,184.71,184.7,31.65716691]
[1754894246144,34.73129978,184.71,184.7,31.65716691]
[1754894246431,34.02129978,184.71,184.7,31.65716691]
[1754894246824,34.02129978,184.71,184.69,0.03]
[1754894247013,30.0,184.71,184.7,38.3]
[1754894247208,34.02629592,184.71,184.7,53.40621557]
[1754894249946,34.02687578,184.71,184.7,143.00621557]
[1754894251418,30.0,184.71,184.7,143.00621557]
[1754894252624,30.67,184.71,184.7,143.00621557]
[1754894252821,36.08389204,184.71,184.7,143.00621557]
[1754894253030,30.67,184.71,184.7,143.00621557]
[1754894254041,40.86241476,184.71,184.69,89.63]
[1754894254337,40.19241476,184.71,184.7,38.26]
[1754894254547,44.2201095,184.71,184.7,38.26]
[1754894254720,30.0,184.71,184.7,53.36621557]
[1754894255232,34.02839474,184.71,184.7,53.36621557]
[1754894255542,39.44228678,184.71,184.7,53.36621557]
[1754894255726,34.69839474,184.71,184.7,53.36621557]
[1754894255930,34.02839474,184.71,184.7,53.36621557]
[1754894256227,34.02921756,184.71,184.7,53.36621557]
[1754894258954,44.89163232,184.71,184.7,53.34621557]
[1754894259249,44.89163232,184.71,184.7,38.24]
[1754894263133,44.89163232,184.71,184.69,0.03]
[1754894263332,9.47774028,184.7,184.69,0.03]
[1754894263554,39.47774028,184.7,184.69,0.03]
[1754894264564,39.48267752,184.7,184.69,0.03]
[1754894264850,44.89686268,184.7,184.69,0.03]
[1754894267137,49.41388417,184.7,184.69,0.03]
[1754894268254,44.63536145,184.7,184.69,0.03]
[1754894268571,36.08418516,184.7,184.69,0.03]
[1754894268752,40.86270788,184.7,184.69,0.03]
[1754894268945,39.93120665,184.7,184.69,0.03]
[1754894269256,35.41418516,184.7,184.69,0.03]
[1754894270167,30.0,184.7,184.69,0.03]
[1754894271765,30.0,184.7,184.69,15.13621557]
[1754894271980,30.0,184.7,184.69,15.34621557]
[1754894272259,30.0,184.7,184.69,15.13621557]
[1754894274953,30.0,184.7,184.69,104.73621557]
[1754894275152,30.0,184.7,184.69,15.13621557]
[1754894277164,30.0,184.7,184.69,25.5392166]
[1754894277469,30.0,184.7,184.69,15.13621557]
[1754894277674,30.0,184.7,184.69,25.5392166]
[1754894278061,30.0,184.7,184.69,115.1392166]
[1754894280270,30.0,184.7,184.69,104.73621557]
[1754894280658,30.0,184.7,184.69,142.87621557]
[1754894281060,30.0,184.7,184.69,153.2792166]
[1754894281471,0.03,184.75,184.73,15.10621557]
[1754894281681,0.03,184.75,184.74,53.26621557]
[1754894282454,5.48852272,184.75,184.74,38.16]
[1754894282861,5.48852272,184.75,184.73,38.16]
[1754894283062,4.77852272,184.74,184.73,38.16]
[1754894283269,5.45852272,184.74,184.73,38.16]
[1754894283478,5.45852272,184.74,184.69,89.63]
[1754894283658,4.77852272,184.71,184.7,38.18]
[1754894283977,5.45852272,184.71,184.69,0.03]